[Event "44th Chess Olympiad Women 2022"]
[Site "Chennai"]
[Date "2022.08.09"]
[Round "11.52"]
[White "Vasquez Jaen, Lourdes Lorena"]
[Black "Cho, Hung-Ling"]
[Result "0-1"]
[ECO "C61"]
[WhiteElo "1653"]
[BlackElo "1576"]
[Annotator "NA RC COMBH"]
[PlyCount "80"]
[EventDate "2022.07.29"]
[EventType "team-tourn"]
[EventCountry "IND"]
[SourceTitle "playchess.com"]
[Source "ChessBase"]
[SourceQuality "1"]
[WhiteTeam "Panama"]
[BlackTeam "Taiwan"]
[WhiteTeamCountry "PAN"]
[BlackTeamCountry "TPE"]
[TimeControl "40/5400+30:1800+30"]

1. e4 {[%emt 0:00:03]} e5 {[%emt 0:00:04]} 2. Nf3 {[%emt 0:00:04]} Nc6 {[%emt 0:00:02]} 3. Bb5 {[%emt 0:00:21]} Nd4 {[%emt 0:00:06]} 4. Nxd4 {[%emt 0:00:06]} exd4 {[%emt 0:00:04]} 5. c3 {[%emt 0:00:42]} c6 {[%emt 0:00:06]} 6. Bc4 {[%emt 0:01:15]} dxc3 {[%emt 0:06:10]} 7. Nxc3 {[%emt 0:01:05]} Nf6 {[%emt 0:07:04]} 8. e5 {[%emt 0:03:21]} d5 {[%emt 0:02:02]} 9. Bb3 {[%emt 0:06:00]} Ne4 {[%emt 0:11:57]} 10. Nxe4 {[%emt 0:06:09]} dxe4 {[%emt 0:00:04]} 11. Qe2 {[%emt 0:10:42]} Qd4 {[%emt 0:09:23]} 12. O-O {[%emt 0:02:12]} Be6 {[%emt 0:15:35]} 13. Bxe6 {[%emt 0:04:57]} fxe6 {[%emt 0:00:03]} 14. Kh1 {[%emt 0:08:37]} O-O-O {[%emt 0:03:35]} 15. Qg4 {[%emt 0:13:34]} Qxe5 {[%emt 0:01:22]} 16. Re1 {[%emt 0:00:27]} Rd4 {[%emt 0:05:37]} 17. b3 {[%emt 0:09:44]} Bd6 {[%emt 0:06:08]} 18. g3 {[%emt 0:07:30]} e3 {[%emt 0:02:46]} 19. Qf3 {[%emt 0:14:10]} Rd3 {[%emt 0:12:52]} 20. Ba3 {[%emt 0:05:49]} Bxa3 {[%emt 0:03:06]} 21. dxe3 {[%emt 0:00:05]} Rf8 {[%emt 0:02:59]} 22. Qe2 {[%emt 0:01:02]} Qe4+ {[%emt 0:00:14]} 23. Kg1 {[%emt 0:00:35]} Bb4 {[%emt 0:02:06]} 24. Red1 {[%emt 0:01:17]} Rfd8 {[%emt 0:04:43]} 25. h3 {[%emt 0:02:29]} Rd2 {[%emt 0:03:13]} 26. Rxd2 {[%emt 0:00:04]} Rxd2 {[%emt 0:00:08]} 27. Qh5 {[%emt 0:00:10]} Qf5 {[%emt 0:01:47]} 28. Qe8+ {[%emt 0:01:15]} Kc7 {[%emt 0:00:03]} 29. Rf1 {[%emt 0:00:15]} Qxh3 {[%emt 0:00:53]} 30. Qf7+ {[%emt 0:00:01]} Rd7 {[%emt 0:00:10]} 31. Qf4+ {[%emt 0:00:17]} Bd6 {[%emt 0:00:08]} 32. Qf3 {[%emt 0:00:46]} Qf5 {[%emt 0:00:35]} 33. Qe2 {[%emt 0:00:15]} Rf7 {[%emt 0:01:16]} 34. Qc4 {[%emt 0:00:48]} Qd5 {[%emt 0:00:35]} 35. Qg4 {[%emt 0:00:27]} Qf5 {[%emt 0:00:16]} 36. Qc4 {[%emt 0:00:02]} Rf6 {[%emt 0:00:43]} 37. e4 {[%emt 0:00:36]} Qf3 {[%emt 0:00:20]} 38. Qd4 {[%emt 0:00:32]} e5 {[%emt 0:00:29]} 39. Qxa7 {[%emt 0:00:41]} Rh6 {[%emt 0:00:14]} 40. Qa5+ {[%emt 0:00:13]} Kd7 {[%emt 0:00:12]} 0-1

[Event "44th Chess Olympiad Women 2022"]
[Site "Chennai"]
[Date "2022.08.09"]
[Round "11.52"]
[White "Castillo Beitia, Ashley Alexandra"]
[Black "Shih, Ching-An"]
[Result "1-0"]
[ECO "A42"]
[WhiteElo "1587"]
[BlackElo "1582"]
[Annotator "NA RC COMBH"]
[PlyCount "81"]
[EventDate "2022.07.29"]
[EventType "team-tourn"]
[EventCountry "IND"]
[SourceTitle "playchess.com"]
[Source "ChessBase"]
[SourceQuality "1"]
[WhiteTeam "Panama"]
[BlackTeam "Taiwan"]
[WhiteTeamCountry "PAN"]
[BlackTeamCountry "TPE"]
[TimeControl "40/5400+30:1800+30"]

1. d4 {[%emt 0:00:03]} g6 {[%emt 0:00:14]} 2. c4 {[%emt 0:00:09]} Bg7 {[%emt 0:00:05]} 3. Nc3 {[%emt 0:00:09]} d6 {[%emt 0:00:11]} 4. e4 {[%emt 0:00:53]} Nd7 {[%emt 0:03:51]} 5. Be3 {[%emt 0:03:50]} e5 {[%emt 0:00:33]} 6. d5 {[%emt 0:00:10]} Ne7 {[%emt 0:00:20]} 7. Bd3 {[%emt 0:01:28]} O-O {[%emt 0:02:41]} 8. Qd2 {[%emt 0:01:51]} f5 {[%emt 0:01:54]} 9. f3 {[%emt 0:01:54]} Nf6 {[%emt 0:02:49]} 10. Nge2 {[%emt 0:01:30]} a6 {[%emt 0:00:43]} 11. O-O-O {[%emt 0:03:12]} f4 {[%emt 0:02:32]} 12. Bf2 {[%emt 0:00:53]} Bd7 {[%emt 0:00:19]} 13. g3 {[%emt 0:02:53]} Nh5 {[%emt 0:02:09]} 14. g4 {[%emt 0:08:38]} Nf6 {[%emt 0:00:19]} 15. c5 {[%emt 0:03:23]} Nc8 {[%emt 0:05:58]} 16. Bc4 {[%emt 0:03:46]} Kh8 {[%emt 0:00:35]} 17. Kb1 {[%emt 0:01:38]} b5 {[%emt 0:08:16]} 18. cxb6 {[%emt 0:03:32]} cxb6 {[%emt 0:00:22]} 19. a3 {[%emt 0:07:54]} b5 {[%emt 0:00:52]} 20. Bd3 {[%emt 0:02:15]} Rf7 {[%emt 0:01:41]} 21. Rc1 {[%emt 0:01:53]} Be8 {[%emt 0:01:06]} 22. Rc2 {[%emt 0:02:08]} Rb7 {[%emt 0:00:12]} 23. Na2 {[%emt 0:01:08]} a5 {[%emt 0:00:40]} 24. Rhc1 {[%emt 0:04:09]} Bd7 {[%emt 0:03:20]} 25. b4 {[%emt 0:04:53]} Ne8 {[%emt 0:09:58]} 26. bxa5 {[%emt 0:05:25]} b4 {[%emt 0:03:18]} 27. a6 {[%emt 0:02:33]} Rc7 {[%emt 0:00:36]} 28. Nxb4 {[%emt 0:02:11]} Rxc2 {[%emt 0:01:39]} 29. Qxc2 {[%emt 0:02:46]} Qa5 {[%emt 0:01:57]} 30. Qb3 {[%emt 0:02:11]} Rb8 {[%emt 0:04:54]} 31. Ka2 {[%emt 0:01:26]} Ba4 {[%emt 0:00:43]} 32. Qc3 {[%emt 0:00:32]} Ne7 {[%emt 0:03:25]} 33. a7 {[%emt 0:01:53]} Rd8 {[%emt 0:01:06]} 34. Ba6 {[%emt 0:01:50]} Nxd5 {[%emt 0:03:38]} 35. exd5 {[%emt 0:01:21]} e4 {[%emt 0:00:04]} 36. Bd4 {[%emt 0:00:16]} exf3 {[%emt 0:00:27]} 37. Nxf4 {[%emt 0:01:07]} Nf6 {[%emt 0:02:14]} 38. Bxf6 {[%emt 0:00:46]} Re8 {[%emt 0:00:17]} 39. Bxg7+ {[%emt 0:00:27]} Kg8 {[%emt 0:00:05]} 40. Ne6 {[%emt 0:00:44]} f2 {[%emt 0:00:24]} 41. Bf8 {[%emt 0:00:40]} 1-0

[Event "44th Chess Olympiad Women 2022"]
[Site "Chennai"]
[Date "2022.08.09"]
[Round "11.52"]
[White "Tsai, Sophie Yi-Hsuan"]
[Black "Chung Hurtado, Yaleika"]
[Result "0-1"]
[ECO "D78"]
[WhiteElo "1131"]
[BlackElo "1696"]
[Annotator "NA RC COMBH"]
[PlyCount "98"]
[EventDate "2022.07.29"]
[EventType "team-tourn"]
[EventCountry "IND"]
[SourceTitle "playchess.com"]
[Source "ChessBase"]
[SourceQuality "1"]
[WhiteTeam "Taiwan"]
[BlackTeam "Panama"]
[WhiteTeamCountry "TPE"]
[BlackTeamCountry "PAN"]
[TimeControl "40/5400+30:1800+30"]

1. d4 {[%emt 0:00:03]} d5 {[%emt 0:00:32]} 2. c4 {[%emt 0:00:05]} c6 {[%emt 0:00:04]} 3. g3 {[%emt 0:00:05]} Nf6 {[%emt 0:00:40]} 4. Bg2 {[%emt 0:00:07]} g6 {[%emt 0:01:21]} 5. Nf3 {[%emt 0:00:07]} Bg7 {[%emt 0:00:06]} 6. O-O {[%emt 0:00:05]} O-O {[%emt 0:00:06]} 7. Re1 {[%emt 0:06:06]} Nbd7 {[%emt 0:06:17]} 8. cxd5 {[%emt 0:00:15]} cxd5 {[%emt 0:00:08]} 9. Nc3 {[%emt 0:00:09]} Nb6 {[%emt 0:00:11]} 10. Ne5 {[%emt 0:05:11]} e6 {[%emt 0:06:46]} 11. b3 {[%emt 0:02:01]} a6 {[%emt 0:10:23]} 12. Ba3 {[%emt 0:00:24]} Re8 {[%emt 0:00:07]} 13. Rc1 {[%emt 0:00:14]} Nbd7 {[%emt 0:01:27]} 14. f4 {[%emt 0:03:14]} Bf8 {[%emt 0:13:22]} 15. Bb2 {[%emt 0:01:44]} b5 {[%emt 0:11:05]} 16. e4 {[%emt 0:00:30]} Nb6 {[%emt 0:00:18]} 17. exd5 {[%emt 0:02:52]} Nfxd5 {[%emt 0:00:12]} 18. Ne4 {[%emt 0:01:18]} f6 {[%emt 0:08:38]} 19. Nc6 {[%emt 0:08:56]} Qd7 {[%emt 0:01:07]} 20. Nxf6+ {[%emt 0:06:12]} Nxf6 {[%emt 0:00:33]} 21. Ne5 {[%emt 0:00:02]} Qa7 {[%emt 0:00:31]} 22. Bxa8 {[%emt 0:01:04]} Qxa8 {[%emt 0:01:20]} 23. Nf3 {[%emt 0:06:13]} Bb7 {[%emt 0:03:26]} 24. Ng5 {[%emt 0:02:35]} Bd5 {[%emt 0:02:53]} 25. Qc2 {[%emt 0:08:07]} Qb7 {[%emt 0:02:45]} 26. Qe2 {[%emt 0:01:08]} h6 {[%emt 0:04:28]} 27. Nh3 {[%emt 0:00:17]} Rc8 {[%emt 0:03:03]} 28. Rxc8 {[%emt 0:00:22]} Nxc8 {[%emt 0:01:47]} 29. Rc1 {[%emt 0:00:24]} Bd6 {[%emt 0:00:34]} 30. Nf2 {[%emt 0:01:02]} Ne7 {[%emt 0:00:48]} 31. Ng4 {[%emt 0:01:41]} Nxg4 {[%emt 0:05:03]} 32. Qxg4 {[%emt 0:00:07]} Kg7 {[%emt 0:01:14]} 33. h4 {[%emt 0:01:10]} h5 {[%emt 0:00:47]} 34. Qe2 {[%emt 0:02:14]} Qb8 {[%emt 0:00:24]} 35. Qd2 {[%emt 0:08:02]} Qf8 {[%emt 0:02:05]} 36. Rf1 {[%emt 0:05:05]} Qf5 {[%emt 0:00:55]} 37. Kh2 {[%emt 0:00:24]} Qe4 {[%emt 0:00:40]} 38. Re1 {[%emt 0:00:49]} Qf3 {[%emt 0:00:07]} 39. Qe2 {[%emt 0:00:25]} Qxe2+ {[%emt 0:01:35]} 40. Rxe2 {[%emt 0:00:02]} Kf6 {[%emt 0:00:21]} 41. Kg1 {[%emt 0:30:59]} Kf5 {[%emt 0:30:24]} 42. Kf2 {[%emt 0:00:17]} Kg4 {[%emt 0:00:08]} 43. Re3 {[%emt 0:02:56]} Nf5 {[%emt 0:00:57]} 44. Rd3 {[%emt 0:00:14]} Ne7 {[%emt 0:03:07]} 45. a3 {[%emt 0:01:34]} b4 {[%emt 0:02:04]} 46. a4 {[%emt 0:00:37]} Nc6 {[%emt 0:01:23]} 47. Bc1 {[%emt 0:01:58]} Na5 {[%emt 0:01:46]} 48. Be3 {[%emt 0:01:43]} Nxb3 {[%emt 0:00:38]} 49. f5 {[%emt 0:01:05]} Bxg3+ {[%emt 0:01:31]} 0-1

[Event "44th Chess Olympiad Women 2022"]
[Site "Chennai"]
[Date "2022.08.09"]
[Round "11.53"]
[White "Deng, Jing Xin Crystal"]
[Black "Nuha, Rilwan"]
[Result "1-0"]
[ECO "E12"]
[WhiteElo "1914"]
[BlackElo "1068"]
[Annotator "NA RC"]
[PlyCount "69"]
[EventDate "2022.07.29"]
[EventType "team-tourn"]
[EventCountry "IND"]
[SourceTitle "playchess.com"]
[Source "ChessBase"]
[SourceQuality "1"]
[WhiteTeam "Hong Kong"]
[BlackTeam "Maldives"]
[WhiteTeamCountry "HKG"]
[BlackTeamCountry "MDV"]
[TimeControl "40/5400+30:1800+30"]

1. d4 {[%emt 0:00:05]} Nf6 {[%emt 0:00:12]} 2. c4 {[%emt 0:00:03]} e6 {[%emt 0:00:07]} 3. Nf3 {[%emt 0:00:02]} d5 {[%emt 0:01:13]} 4. Bg5 {[%emt 0:00:44]} Be7 {[%emt 0:00:14]} 5. e3 {[%emt 0:00:18]} O-O {[%emt 0:01:12]} 6. Nc3 {[%emt 0:00:17]} b6 {[%emt 0:01:59]} 7. Bd3 {[%emt 0:00:08]} dxc4 {[%emt 0:01:11]} 8. Bxc4 {[%emt 0:00:07]} Bb7 {[%emt 0:00:13]} 9. O-O {[%emt 0:00:56]} Nbd7 {[%emt 0:00:55]} 10. Qe2 {[%emt 0:04:57]} c5 {[%emt 0:03:02]} 11. Rfd1 {[%emt 0:01:31]} Rc8 {[%emt 0:07:37]} 12. Ba6 {[%emt 0:18:09]} Bxf3 {[%emt 0:07:29]} 13. Qxf3 {[%emt 0:00:09]} Ra8 {[%emt 0:02:34]} 14. Bb7 {[%emt 0:02:44]} Rb8 {[%emt 0:00:23]} 15. Bf4 {[%emt 0:00:25]} cxd4 {[%emt 0:03:27]} 16. exd4 {[%emt 0:00:05]} Ne8 {[%emt 0:09:14]} 17. Bxb8 {[%emt 0:00:20]} Qxb8 {[%emt 0:01:03]} 18. Bc6 {[%emt 0:00:58]} Ndf6 {[%emt 0:01:18]} 19. Ne4 {[%emt 0:01:16]} Nd6 {[%emt 0:02:23]} 20. Nxd6 {[%emt 0:01:22]} Bxd6 {[%emt 0:01:57]} 21. g3 {[%emt 0:00:10]} Rc8 {[%emt 0:03:42]} 22. Rac1 {[%emt 0:00:14]} Rc7 {[%emt 0:03:46]} 23. a3 {[%emt 0:03:46]} a5 {[%emt 0:02:31]} 24. Bb5 {[%emt 0:04:16]} Nd5 {[%emt 0:02:11]} 25. Rc6 {[%emt 0:00:18]} Rxc6 {[%emt 0:01:52]} 26. Bxc6 {[%emt 0:00:01]} Ne7 {[%emt 0:00:46]} 27. Be4 {[%emt 0:05:07]} g6 {[%emt 0:04:27]} 28. Rc1 {[%emt 0:00:15]} f5 {[%emt 0:02:24]} 29. Bb1 {[%emt 0:01:32]} Kf7 {[%emt 0:02:38]} 30. Ba2 {[%emt 0:00:11]} Qh8 {[%emt 0:02:07]} 31. Qe3 {[%emt 0:04:35]} Qf6 {[%emt 0:01:59]} 32. Re1 {[%emt 0:00:31]} Nd5 {[%emt 0:00:53]} 33. Bxd5 {[%emt 0:00:16]} exd5 {[%emt 0:00:17]} 34. Qe8+ {[%emt 0:00:26]} Kg7 {[%emt 0:00:40]} 35. Re6 {[%emt 0:01:18]} 1-0

[Event "44th Chess Olympiad Women 2022"]
[Site "Chennai"]
[Date "2022.08.09"]
[Round "11.53"]
[White "Leung, Hoi Ting"]
[Black "Kiyan Mohamed, Usamath"]
[Result "1-0"]
[ECO "A34"]
[WhiteElo "1277"]
[BlackElo "1100"]
[Annotator "NA RC COMBH"]
[PlyCount "99"]
[EventDate "2022.07.29"]
[EventType "team-tourn"]
[EventCountry "IND"]
[SourceTitle "playchess.com"]
[Source "ChessBase"]
[SourceQuality "1"]
[WhiteTeam "Hong Kong"]
[BlackTeam "Maldives"]
[WhiteTeamCountry "HKG"]
[BlackTeamCountry "MDV"]
[TimeControl "40/5400+30:1800+30"]

1. d4 {[%emt 0:00:02]} Nf6 {[%emt 0:00:08]} 2. c4 {[%emt 0:00:15]} c5 {[%emt 0:00:24]} 3. e3 {[%emt 0:00:49]} cxd4 {[%emt 0:03:30]} 4. exd4 {[%emt 0:01:29]} e6 {[%emt 0:03:02]} 5. Nc3 {[%emt 0:03:06]} Be7 {[%emt 0:03:04]} 6. Nf3 {[%emt 0:03:18]} b6 {[%emt 0:02:35]} 7. Bd3 {[%emt 0:06:38]} O-O {[%emt 0:02:07]} 8. Bf4 {[%emt 0:01:49]} Bb7 {[%emt 0:03:46]} 9. O-O {[%emt 0:05:48]} d5 {[%emt 0:11:35]} 10. cxd5 {[%emt 0:08:08]} Nxd5 {[%emt 0:01:40]} 11. Nxd5 {[%emt 0:01:35]} Bxd5 {[%emt 0:04:35]} 12. Ne5 {[%emt 0:09:36]} f5 {[%emt 0:11:40]} 13. Bc4 {[%emt 0:08:34]} Bxc4 {[%emt 0:16:42]} 14. Nxc4 {[%emt 0:00:29]} Nc6 {[%emt 0:02:51]} 15. Be5 {[%emt 0:03:35]} Bf6 {[%emt 0:08:30]} 16. Qe2 {[%emt 0:06:55]} Nxe5 {[%emt 0:09:40]} 17. dxe5 {[%emt 0:01:31]} Be7 {[%emt 0:00:34]} 18. Rfd1 {[%emt 0:01:53]} Qc7 {[%emt 0:00:22]} 19. Rac1 {[%emt 0:01:46]} Bc5 {[%emt 0:01:04]} 20. Nd6 {[%emt 0:05:22]} Rfd8 {[%emt 0:02:01]} 21. b4 {[%emt 0:00:05]} Bxf2+ {[%emt 0:01:19]} 22. Qxf2 {[%emt 0:01:25]} Qe7 {[%emt 0:00:16]} 23. Rc6 {[%emt 0:01:36]} h6 {[%emt 0:03:05]} 24. Rdc1 {[%emt 0:01:42]} Qd7 {[%emt 0:01:43]} 25. h3 {[%emt 0:02:58]} Qe7 {[%emt 0:01:15]} 26. Qf3 {[%emt 0:02:03]} Rab8 {[%emt 0:01:51]} 27. Qh5 {[%emt 0:01:01]} Rf8 {[%emt 0:01:09]} 28. Rc7 {[%emt 0:00:53]} Qg5 {[%emt 0:00:47]} 29. Qxg5 {[%emt 0:00:22]} hxg5 {[%emt 0:00:05]} 30. Re7 {[%emt 0:00:39]} Kh7 {[%emt 0:01:33]} 31. Rcc7 {[%emt 0:00:37]} Rg8 {[%emt 0:00:58]} 32. Rxe6 {[%emt 0:00:24]} Rbd8 {[%emt 0:00:51]} 33. Ree7 {[%emt 0:00:47]} f4 {[%emt 0:00:31]} 34. Rxa7 {[%emt 0:01:13]} Kg6 {[%emt 0:00:51]} 35. Re6+ {[%emt 0:01:35]} Kh7 {[%emt 0:00:34]} 36. a4 {[%emt 0:00:31]} Rgf8 {[%emt 0:00:55]} 37. Ree7 {[%emt 0:00:30]} Rg8 {[%emt 0:00:18]} 38. a5 {[%emt 0:00:31]} bxa5 {[%emt 0:00:06]} 39. bxa5 {[%emt 0:00:08]} Rb8 {[%emt 0:00:11]} 40. Reb7 {[%emt 0:00:56]} Rxb7 {[%emt 0:00:29]} 41. Rxb7 {[%emt 0:30:35]} Re8 {[%emt 0:30:49]} 42. Nxe8 {[%emt 0:00:13]} Kg6 {[%emt 0:00:13]} 43. a6 {[%emt 0:00:10]} Kf5 {[%emt 0:00:12]} 44. a7 {[%emt 0:00:12]} Kxe5 {[%emt 0:00:08]} 45. a8=Q {[%emt 0:00:13]} Kf5 {[%emt 0:00:19]} 46. Qa5+ {[%emt 0:00:10]} Ke6 {[%emt 0:00:16]} 47. Rb6+ {[%emt 0:00:11]} Kf7 {[%emt 0:00:08]} 48. Qa7+ {[%emt 0:00:11]} Kf8 {[%emt 0:00:11]} 49. Qxg7+ {[%emt 0:00:15]} Kxe8 {[%emt 0:00:10]} 50. Rb5 {[%emt 0:01:10]} 1-0

[Event "44th Chess Olympiad Women 2022"]
[Site "Chennai"]
[Date "2022.08.09"]
[Round "11.53"]
[White "Nihaya, Ahmed"]
[Black "Kannappan, Sigappi"]
[Result "0-1"]
[ECO "B90"]
[WhiteElo "1233"]
[BlackElo "1914"]
[Annotator "TA"]
[PlyCount "72"]
[EventDate "2022.07.29"]
[EventType "team-tourn"]
[EventCountry "IND"]
[SourceTitle "playchess.com"]
[Source "ChessBase"]
[SourceQuality "1"]
[WhiteTeam "Maldives"]
[BlackTeam "Hong Kong"]
[WhiteTeamCountry "MDV"]
[BlackTeamCountry "HKG"]
[TimeControl "40/5400+30:1800+30"]

{[%evp 10,72,29,9,18,0,4,0,9,0,0,-15,-13,-14,0,0,-28,-33,-34,-508,-505,-506,-497,-566,-557,-556,-564,-502,-550,-542,-542,-528,-522,-520,-509,-1247,-1091,-1045,-992,-1503,-827,-1207,-1179,-1143,-1160,-1592,-1436,-29982,-29983,-29992,-29990,-29990,-29986,-29986,-29987,-29995,-29995,-29995,-29996,-29996,-29997,-29997,-29998,-29998,-29999]} 1. e4 {[%emt 0:00:04]} c5 {[%emt 0:00:16]} 2. Nf3 {[%emt 0:00:06]} d6 {[%emt 0:00:05]} 3. d4 {[%emt 0:00:15]} cxd4 {[%emt 0:00:04]} 4. Nxd4 {[%emt 0:00:07]} Nf6 {[%emt 0:00:08]} 5. Nc3 {[%emt 0:00:25]} a6 {[%emt 0:00:04]} 6. a3 {[%emt 0:00:28]} e6 {[%emt 0:01:37] B90: Sicilian Najdorf: Unusual White 6th moves, 6 Be3 Ng4 and 6 Be3 e5.} 7. Bd3 {[%emt 0:07:53]} Be7 {[%emt 0:00:51]} 8. O-O {[%emt 0:00:39]} O-O {[%emt 0:00:16] The position is equal.} 9. f4 {[%emt 0:00:55]} Nc6 {[%emt 0:03:55]} 10. Nf3 {[%emt 0:02:31]} b5 {[%emt 0:05:12]} 11. Kh1 {[%emt 0:01:25]} Bb7 {[%emt 0:01:09] [#]} 12. e5 $146 {[%emt 0:02:53]} ({Predecessor:} 12. Qe1 b4 13. axb4 Nxb4 14. Bd2 a5 15. Qg3 d5 16. e5 Ne4 17. Rae1 Nxg3+ {0-1 (17) Dushyant,S (2270)-Shipov,S (2541) Chess.com INT 2021}) 12... dxe5 {[%emt 0:09:20]} 13. fxe5 {[%emt 0:00:31]} Nd7 {[%emt 0:02:07]} 14. Ng5 $2 {[%emt 0:14:17][%mdl 8192] [#] Now White is beyond hope.} Bxg5 $19 {[%emt 0:17:27]} 15. Bxh7+ {[%emt 0:00:25]} Kxh7 {[%emt 0:00:17]} 16. Qh5+ {[%emt 0:04:14]} Bh6 {[%emt 0:00:07]} 17. Bxh6 {[%emt 0:00:20]} gxh6 {[%emt 0:00:10]} 18. Rxf7+ {[%emt 0:00:45]} Rxf7 {[%emt 0:01:20]} 19. Qxf7+ {[%emt 0:00:14]} Kh8 {[%emt 0:00:04]} 20. Qxe6 {[%emt 0:01:04]} Qe7 {[%emt 0:18:30]} 21. Qxh6+ {[%emt 0:00:56]} Qh7 {[%emt 0:00:18]} 22. Qd2 {[%emt 0:01:35]} (22. Qxh7+ $142 Kxh7 23. e6) 22... Ncxe5 {[%emt 0:00:25] [#] Hoping for ...Rg8.} 23. Nd5 {[%emt 0:03:19]} Rg8 {[%emt 0:08:51] Threatens to win with ...Ng4.} 24. Re1 {[%emt 0:06:23]} Rg6 {[%emt 0:03:12]} 25. Re3 {[%emt 0:03:30]} Rh6 {[%emt 0:04:00]} 26. h3 {[%emt 0:01:25]} Rd6 {[%emt 0:01:09][%cal Bh6d6,Bd6d5,Bd5e5,Be5e1][%mdl 32]} 27. c4 {[%emt 0:05:58]} bxc4 {[%emt 0:04:22]} 28. Qb4 {[%emt 0:00:28]} Rxd5 {[%emt 0:01:15] Black mates.} 29. Rxe5 {[%emt 0:04:12]} Rxe5 {[%emt 0:01:02]} ({Inferior is} 29... Nxe5 30. Qf8+ Qg8 31. Qh6+ Qh7 32. Qf8+ Qg8 33. Qh6+ Qh7 34. Qf8+ $11) 30. Qxb7 {[%emt 0:01:07]} Qe7 {[%emt 0:00:59]} 31. Qc8+ {[%emt 0:05:58]} Kg7 {[%emt 0:00:40]} 32. g4 {[%emt 0:00:27]} Re1+ {[%emt 0:02:08]} 33. Kg2 {[%emt 0:00:07]} Qe4+ {[%emt 0:01:26]} 34. Kg3 {[%emt 0:00:11]} Re3+ {[%emt 0:00:18]} 35. Kh4 {[%emt 0:00:37]} Qh7+ {[%emt 0:00:06]} 36. Kg5 {[%emt 0:00:41]} Qh6+ {[%emt 0:00:13] Weighted Error Value: White=1.19/Black=0.02 (flawless)} 0-1

[Event "44th Chess Olympiad Women 2022"]
[Site "Chennai"]
[Date "2022.08.09"]
[Round "11.53"]
[White "Abdul Rasheed, Mariyam Laisa"]
[Black "Li, Joy Ching"]
[Result "0-1"]
[ECO "B34"]
[WhiteElo "1145"]
[BlackElo "1386"]
[Annotator "NA RC COMBH"]
[PlyCount "62"]
[EventDate "2022.07.29"]
[EventType "team-tourn"]
[EventCountry "IND"]
[SourceTitle "playchess.com"]
[Source "ChessBase"]
[SourceQuality "1"]
[WhiteTeam "Maldives"]
[BlackTeam "Hong Kong"]
[WhiteTeamCountry "MDV"]
[BlackTeamCountry "HKG"]
[TimeControl "40/5400+30:1800+30"]

1. e4 {[%emt 0:00:08]} c5 {[%emt 0:00:02]} 2. Nf3 {[%emt 0:00:20]} g6 {[%emt 0:00:05]} 3. d4 {[%emt 0:00:09]} cxd4 {[%emt 0:00:04]} 4. Nxd4 {[%emt 0:00:04]} Nc6 {[%emt 0:00:05]} 5. Nxc6 {[%emt 0:00:12]} bxc6 {[%emt 0:00:07]} 6. Qd4 {[%emt 0:00:11]} Nf6 {[%emt 0:00:51]} 7. e5 {[%emt 0:00:12]} Qa5+ {[%emt 0:03:24]} 8. Bd2 {[%emt 0:01:26]} Qd5 {[%emt 0:00:09]} 9. Qc3 {[%emt 0:06:45]} Ne4 {[%emt 0:01:48]} 10. Qe3 {[%emt 0:05:26]} Bg7 {[%emt 0:03:19]} 11. f4 {[%emt 0:09:42]} Nxd2 {[%emt 0:01:14]} 12. Nxd2 {[%emt 0:03:25]} O-O {[%emt 0:01:25]} 13. Qf3 {[%emt 0:06:59]} Qa5 {[%emt 0:02:06]} 14. Bc4 {[%emt 0:02:03]} d5 {[%emt 0:03:13]} 15. Bb3 {[%emt 0:04:44]} f6 {[%emt 0:07:15]} 16. exf6 {[%emt 0:03:11]} Rxf6 {[%emt 0:02:01]} 17. O-O-O {[%emt 0:01:26]} Be6 {[%emt 0:03:26]} 18. g4 {[%emt 0:03:17]} Raf8 {[%emt 0:02:30]} 19. g5 {[%emt 0:11:24]} Rxf4 {[%emt 0:02:12]} 20. Qe3 {[%emt 0:00:37]} Bg4 {[%emt 0:01:53]} 21. Rde1 {[%emt 0:05:36]} e5 {[%emt 0:03:45]} 22. Rhf1 {[%emt 0:04:34]} Kh8 {[%emt 0:02:46]} 23. Rxf4 {[%emt 0:12:21]} Rxf4 {[%emt 0:02:12]} 24. Rf1 {[%emt 0:06:11]} Qb6 {[%emt 0:05:41]} 25. Qg3 {[%emt 0:03:44]} Rxf1+ {[%emt 0:01:37]} 26. Nxf1 {[%emt 0:00:05]} Qd4 {[%emt 0:00:58]} 27. Qe1 {[%emt 0:03:46]} Qf4+ {[%emt 0:00:46]} 28. Kb1 {[%emt 0:01:52]} Qxg5 {[%emt 0:00:21]} 29. Qa5 {[%emt 0:02:12]} Qf6 {[%emt 0:00:56]} 30. Nd2 {[%emt 0:01:53]} e4 {[%emt 0:00:21]} 31. Ka1 {[%emt 0:00:44]} Qxb2# {[%emt 0:00:08]} 0-1

[Event "44th Chess Olympiad Women 2022"]
[Site "Chennai"]
[Date "2022.08.09"]
[Round "11.55"]
[White "Mouradian, Knarik"]
[Black "La Fleur, Zara"]
[Result "0-1"]
[ECO "C54"]
[WhiteElo "2121"]
[BlackElo "1513"]
[Annotator "NA RC"]
[PlyCount "80"]
[EventDate "2022.07.29"]
[EventType "team-tourn"]
[EventCountry "IND"]
[SourceTitle "playchess.com"]
[Source "ChessBase"]
[SourceQuality "1"]
[WhiteTeam "Lebanon"]
[BlackTeam "TTO"]
[WhiteTeamCountry "LBN"]
[TimeControl "40/5400+30:1800+30"]

1. e4 {[%emt 0:00:20]} e5 {[%emt 0:00:12]} 2. Bc4 {[%emt 0:00:18]} Bc5 {[%emt 0:00:53]} 3. Nf3 {[%emt 0:00:31]} Nc6 {[%emt 0:00:16]} 4. d3 {[%emt 0:00:29]} d6 {[%emt 0:00:43]} 5. c3 {[%emt 0:00:38]} Nf6 {[%emt 0:00:30]} 6. Nbd2 {[%emt 0:02:21]} O-O {[%emt 0:00:58]} 7. O-O {[%emt 0:00:34]} Bb6 {[%emt 0:01:38]} 8. Bb3 {[%emt 0:00:36]} Be6 {[%emt 0:04:43]} 9. h3 {[%emt 0:06:54]} Ne7 {[%emt 0:03:35]} 10. Nc4 {[%emt 0:05:11]} Ng6 {[%emt 0:06:01]} 11. Re1 {[%emt 0:05:01]} c6 {[%emt 0:04:07]} 12. Nxb6 {[%emt 0:02:12]} Qxb6 {[%emt 0:04:22]} 13. Bc2 {[%emt 0:10:04]} h6 {[%emt 0:04:53]} 14. d4 {[%emt 0:08:28]} Rfe8 {[%emt 0:07:21]} 15. b3 {[%emt 0:05:48]} Rac8 {[%emt 0:06:25]} 16. Be3 {[%emt 0:03:28]} Qc7 {[%emt 0:03:19]} 17. Rc1 {[%emt 0:05:00]} c5 {[%emt 0:09:11]} 18. d5 {[%emt 0:06:42]} Bd7 {[%emt 0:00:09]} 19. Nh2 {[%emt 0:01:58]} b5 {[%emt 0:06:21]} 20. Qf3 {[%emt 0:05:04]} Nh4 {[%emt 0:06:54]} 21. Qg3 {[%emt 0:01:29]} Ng6 {[%emt 0:00:11]} 22. Qf3 {[%emt 0:02:53]} Nh4 {[%emt 0:01:40]} 23. Qe2 {[%emt 0:00:29]} Qd8 {[%emt 0:02:59]} 24. g3 {[%emt 0:02:29]} Ng6 {[%emt 0:00:43]} 25. Ng4 {[%emt 0:02:06]} Nh7 {[%emt 0:10:47]} 26. h4 {[%emt 0:05:42]} Ne7 {[%emt 0:05:03]} 27. f4 {[%emt 0:06:32]} exf4 {[%emt 0:03:11]} 28. Bxf4 {[%emt 0:01:28]} Nxd5 {[%emt 0:02:17]} 29. Qf3 {[%emt 0:02:30]} Nxf4 {[%emt 0:00:42]} 30. Qxf4 {[%emt 0:00:15]} Bxg4 {[%emt 0:00:39]} 31. Qxg4 {[%emt 0:00:02]} Re5 {[%emt 0:01:26]} 32. Rf1 {[%emt 0:00:42]} Nf6 {[%emt 0:01:47]} 33. Qf3 {[%emt 0:00:26]} Qd7 {[%emt 0:00:42]} 34. Rcd1 {[%emt 0:01:04]} Rce8 {[%emt 0:00:33]} 35. Qf4 {[%emt 0:02:14]} a6 {[%emt 0:01:08]} 36. Rf2 {[%emt 0:00:46]} Qc7 {[%emt 0:01:02]} 37. Rfd2 {[%emt 0:00:58]} R8e6 {[%emt 0:00:47]} 38. Re2 {[%emt 0:02:22]} Qe7 {[%emt 0:00:34]} 39. Kf1 {[%emt 0:02:22]} Nxe4 {[%emt 0:00:34]} 40. Kg1 {[%emt 0:00:43]} Nxc3 {[%emt 0:00:26]} 0-1